Cogmind - Beta 12 *** ADVENTURER MODE // 2023.11.02 @ 17:16:06 // Winter2019/RPGLIKE Player: Noname Result: Destroyed by D-53 Grenadier with Mini Grenade Launcher Performance ------------- Evolutions (1) 500 Regions Visited (3) 600 Robots Destroyed (37) 185 Value Destroyed (848) 848 Prototype IDs (2) 40 Alien Tech Used (0) 0 Bonus (0) 0 TOTAL SCORE: 2173 Bonus ------- None Cogmind --------- Core Integrity 0/600 Matter 300/300 Energy 275/275 System Corruption 0% Temperature Cool (0) Movement Walking (120) Location -9/Mines Parts ------- > --- POWER (1) -------- Deuterium Engine > --- PROPULSION (3) --- Aluminum Leg Aluminum Leg Improved Aluminum Leg > --- UTILITY (6) ------ Heat Sink Structural Scanner Sensor Array Signal Interpreter Improved Targeting Computer Hardened Medium Armor Plating > --- WEAPON (2) ------- Flak Cannon Rocket Launcher > --- INVENTORY (3) ---- Deuterium Engine Aluminum Leg Flak Cannon Peak State ------------ > --- POWER ------------ Deuterium Engine > --- PROPULSION ------- Aluminum Leg Aluminum Leg Improved Aluminum Leg > --- UTILITY ---------- Heat Sink Structural Scanner Sensor Array Signal Interpreter Improved Targeting Computer Hardened Medium Armor Plating > --- WEAPON ----------- Flak Cannon Rocket Launcher > --- INVENTORY -------- Deuterium Engine Flak Cannon [Rating: 21] Favorites ----------- Power Ion Engine Engine Ion Engine Propulsion Aluminum Leg Treads Light Treads Leg Aluminum Leg Utility Sensor Array Device Sensor Array Storage High-capacity Matter Pod Processor Improved Targeting Computer Protection Hardened Medium Armor Plating Weapon Medium Laser Energy Gun Medium Laser Ballistic Gun Light Assault Rifle Ballistic Cannon Flak Cannon Launcher Rocket Launcher Build | -11 -10 -9 -9 ------- Run | Jun Mat Mat Min Slots Evolved 8 | 4 . 2 2 Power . | . . . . Propulsion 2 | 1 . . 1 Utility 5 | 3 . 2 . Weapon 1 | . . . 1 Parts Attached 33 | 1 10 18 4 Power 2 | . . 2 . Engine 2 | . . 2 . Core . | . . . . Reactor . | . . . . Propulsion 7 | 1 . 3 3 Treads 1 | . . 1 . Leg 6 | 1 . 2 3 Wheel . | . . . . Hover . | . . . . Flight . | . . . . Utility 15 | . 9 6 . Device 6 | . 4 2 . Storage 2 | . 1 1 . Processor 6 | . 4 2 . Hackware . | . . . . Protection 1 | . . 1 . Artifact . | . . . . Weapon 9 | . 1 7 1 Energy Gun 4 | . 1 3 . Energy Cannon . | . . . . Ballistic Gun . | . . . . Ballistic Cannon 4 | . . 4 . Launcher 1 | . . . 1 Special Weapon . | . . . . Impact Weapon . | . . . . Slashing Weapon . | . . . . Piercing Weapon . | . . . . Special Melee Weapon . | . . . . Unidentified Prototypes . | . . . . Parts Lost . | . . . . Power . | . . . . Propulsion . | . . . . Utility . | . . . . Weapon . | . . . . Highest Loss Streak . | . . . . To Critical Strikes . | . . . . Average Slot Usage (%) 96 | . 94 97 96 Engine 10 | . 12 10 8 Leg 22 | . 25 20 21 Device 25 | . 17 34 25 Storage 2 | . 3 2 . Processor 18 | . 23 15 16 Protection 2 | . . 3 8 Energy Gun 4 | . 10 1 . Ballistic Cannon 5 | . . 9 8 Launcher 1 | . . . 7 Naked Turns . | . . . . Heaviest Build 30 | 6 11 26 30 Greatest Support 33 | 20 20 20 33 Greatest Overweight (x) 1 | . . 1 1 Average Overweight (x) . | . . . . Largest Inventory Capacity 3 | 2 2 3 3 Average Capacity 2 | 2 2 2 3 Most Carried 3 | 2 2 3 3 Average Carried 2 | . 1 2 2 Final Capacity 3 | 2 2 3 3 Final Carried 3 | 2 2 3 3 Class Distribution -------------------- 50% | Mutant 43% | Hacker-Mutant 6% | Hacker-Skirmisher Dominant Class ---------------- Mutant | -10/Materials Hacker-Mutant | -9/Materials Hacker-Mutant | -9/Mines Resources | -11 -10 -9 -9 ----------- Run | Jun Mat Mat Min Matter Collected 676 | 200 136 270 70 Remotely . | . . . . Salvage Created 924 | . 284 513 127 Parts 68 | . 16 46 6 Haulers Intercepted . | . . . . Recyclers Shooed 1 | . . 1 . Parts Field Recycled . | . . . . Retrieved Matter . | . . . . Parts Self-Destructed . | . . . . Prevented . | . . . . Kills | -11 -10 -9 -9 ------- Run | Jun Mat Mat Min Combat Hostiles Destroyed 31 | . 9 19 3 Guns 17 | . 9 8 . Cannons 12 | . . 9 3 AOE 2 | . . 2 . Classes Destroyed 5 | . 3 1 1 Watcher 6 | . 3 3 . Swarmer 15 | . 6 9 . Grunt 13 | . 3 8 2 Duelist 1 | . . . 1 Sentry 2 | . . 2 . Best Kill Streak 6 | . 3 6 3 Combat Bots Only 6 | . 3 6 3 Max Kills in Single Turn 3 | . 1 3 1 Gunslinging . | . . . . Exploded 2 | . . 2 . Melee . | . . . . Uniques/NPCs Destroyed . | . . . . Combat | -11 -10 -9 -9 -------- Run | Jun Mat Mat Min Damage Taken 1189 | . 495 405 289 Core 930 | . 408 314 208 Absorbed by Shields . | . . . . Redirected to Core 696 | . 259 256 181 Core Remaining (%) 78 | 100 56 . . Volleys Fired 117 | . 75 37 5 Largest 1 | . 1 1 1 Hottest 50 | . 50 45 44 Shots Fired 117 | . 75 37 5 Gun 92 | . 75 17 . Cannon 25 | . . 20 5 Launcher . | . . . . Special . | . . . . Kinetic 51 | . 26 20 5 Thermal 49 | . 49 . . Explosive . | . . . . Electromagnetic 17 | . . 17 . Robot Hit Streak 24 | . 12 21 24 Robot Miss Streak 2 | . 2 1 1 Penetration Max . | . . . . Secondary Targets . | . . . . Shots Hit Robots 103 | . 61 37 5 Core Hits 61 | . 17 33 11 Critical Kills . | . . . . Critical Parts Destroyed 1 | . 1 . . Critical Strikes 7 | . 6 1 . Burn 5 | . 5 . . Destroy 1 | . 1 . . Blast 1 | . . 1 . Melee Attacks . | . . . . Impact . | . . . . Slashing . | . . . . Piercing . | . . . . Sneak Attacks . | . . . . Combat Hostiles . | . . . . Follow-up Attacks . | . . . . Damage Inflicted 1647 | . 684 814 149 Guns 915 | . 675 240 . Cannons 643 | . . 494 149 Explosions 80 | . . 80 . Melee . | . . . . Ramming 9 | . 9 . . Kinetic 833 | . 190 494 149 Thermal 565 | . 485 80 . Explosive . | . . . . Electromagnetic 240 | . . 240 . Impact . | . . . . Slashing . | . . . . Piercing . | . . . . Highest Corruption . | . . . . Average Corruption . | . . . . Corruption Purged . | . . . . Corruption Blocked . | . . . . Overload Shots . | . . . . Overflow Damage . | . . . . Projectiles . | . . . . Explosions . | . . . . Melee . | . . . . Knockbacks 13 | . . 5 8 Impact . | . . . . Kinetic 10 | . . 5 5 Secondary 3 | . . . 3 Self-Inflicted Damage 19 | . 9 10 . Shots 1 | . . 1 . Rammed . | . . . . Targets Rammed . | . . . . Kicked . | . . . . Crushed . | . . . . Highest Temperature 183 | . 183 4 . Average Temperature 55 | . 56 2 . Received Heat Transfer 303 | . 195 96 12 Siege Activations . | . . . . Robots Corrupted . | . . . . Combat Hostiles . | . . . . Parts Fried 1 | . . 1 . Impact Corruptions . | . . . . Robots Melted . | . . . . Combat Hostiles . | . . . . Parts Melted 4 | . 3 1 . Heat Transferred 1913 | . 1813 100 . Parts Sabotaged . | . . . . Parts Stolen . | . . . . Parts Stripped . | . . . . Power Chain Reactions 1 | . . 1 . Missiles Intercepted . | . . . . Alert | -11 -10 -9 -9 ------- Run | Jun Mat Mat Min Peak Influence 399 | . 166 399 88 Initial 18 | . . 10 18 Average 93 | . 68 146 52 Maximum Alert Level 1 | . . 1 . Low Security (%) 89 | 100 100 71 100 Level 1 10 | . . 28 . Level 2 . | . . . . Level 3 . | . . . . Level 4 . | . . . . Level 5 . | . . . . High Security . | . . . . Max Security . | . . . . Squads Dispatched 4 | . 1 3 . Investigation 2 | . 1 1 . Extermination . | . . . . Reinforcement 2 | . . 2 . Assault . | . . . . Garrison . | . . . . Intercept . | . . . . Searches Triggered . | . . . . Construction Impeded . | . . . . Haulers Reinforced . | . . . . Active Scanning Responses . | . . . . Cargo Convoy Interrupts . | . . . . Stealth | -11 -10 -9 -9 --------- Run | Jun Mat Mat Min Distress Signals 2 | . . 2 . Communications Jammed . | . . . . Distress Signals . | . . . . Times Spotted 50 | . 19 26 5 Peak Tracking Total 7 | . 3 7 3 Tactical Retreats 1 | . . 1 . Traps | -11 -10 -9 -9 ------- Run | Jun Mat Mat Min Traps Triggered 2 | . 1 1 . Indirectly . | . . . . Trap Hack Attempts . | . . . . Triggered . | . . . . Disarmed . | . . . . Reprogrammed . | . . . . Reused . | . . . . Traps Extracted . | . . . . Installed . | . . . . Triggered . | . . . . Machines | -11 -10 -9 -9 ---------- Run | Jun Mat Mat Min Machines Disabled 1 | . . 1 . Max in Single Turn 1 | . . 1 . Machines Repaired . | . . . . Machines Sabotaged . | . . . . Overloaded Fab Kills . | . . . . Hacking | -11 -10 -9 -9 --------- Run | Jun Mat Mat Min Machines Accessed 14 | . 7 7 . Terminals 11 | . 5 6 . Fabricators . | . . . . Repair Stations . | . . . . Recycling Units 3 | . 2 1 . Scanalyzers . | . . . . Garrison Access . | . . . . Total Hacks 38 | . 17 21 . Successful 31 | . 14 17 . Failed 7 | . 3 4 . Catastrophic 1 | . . 1 . Database Lockouts . | . . . . Manual 20 | . 9 11 . Terminals 34 | . 15 19 . Fabricators . | . . . . Repair Stations . | . . . . Recycling Units 4 | . 2 2 . Scanalyzers . | . . . . Garrison Access . | . . . . Terminal Hacks 16 | . 7 9 . Prototype ID Bank 1 | . 1 . . Level Access Points 1 | . . 1 . Branch Access Points 1 | . 1 . . Emergency Access Points 1 | . 1 . . Terminal Index 1 | . 1 . . Unreport Threat 3 | . . 3 . Locate Traps 5 | . 2 3 . Maintenance Status 1 | . . 1 . Hauler Manifests 1 | . 1 . . Registered Components 1 | . . 1 . Fabricator Hacks . | . . . . Repair Station Hacks . | . . . . Recycling Unit Hacks 4 | . 2 2 . Report Inventory 3 | . 2 1 . Retrieve Components 1 | . . 1 . Scanalyzer . | . . . . Garrison Access Hacks . | . . . . Unauthorized Hacks 11 | . 5 6 . Terminals 11 | . 5 6 . Track 1 | . . 1 . Botnet 10 | . 5 5 . Fabricators . | . . . . Repair Stations . | . . . . Recycling Units . | . . . . Scanalyzers . | . . . . Garrison Access . | . . . . Data Cores Recovered . | . . . . Used . | . . . . Hacking Detections 9 | . 5 4 . Full Trace Events 1 | . . 1 . Feedback Events . | . . . . Feedback Blocked . | . . . . Robot Schematics Acquired . | . . . . Robots Built . | . . . . Authchips . | . . . . Time . | . . . . Total Robot Build Rating . | . . . . Part Schematics Acquired . | . . . . Parts Built . | . . . . Authchips . | . . . . Time . | . . . . Total Part Build Rating . | . . . . Parts Repaired . | . . . . Time . | . . . . Parts Recycled . | . . . . Recycled Matter . | . . . . Retrieved Matter . | . . . . Retrieved Components 7 | . . 7 . Parts Scanalyzed . | . . . . Part Schematics Acquired . | . . . . Parts Damaged . | . . . . Bothacking | -11 -10 -9 -9 ------------ Run | Jun Mat Mat Min Used RIF Installer . | . . . . Robots Hacked . | . . . . Non-combat . | . . . . Combat . | . . . . Robot Hacks Applied . | . . . . Relay Couplers Released . | . . . . Fabnet Peak Effective % . | . . . . Robots Rewired . | . . . . Allies Hacked . | . . . . Hacks Repelled . | . . . . Allies | -11 -10 -9 -9 -------- Run | Jun Mat Mat Min Total Allies . | . . . . Largest Group . | . . . . Highest-Rated Group . | . . . . Highest-Rated Ally . | . . . . Total Orders . | . . . . Ally Attacks . | . . . . Total Damage . | . . . . Kills . | . . . . Allies Corrupted . | . . . . Allies Melted . | . . . . Intel | -11 -10 -9 -9 ------- Run | Jun Mat Mat Min Robot Analysis Total . | . . . . Derelict Logs Recovered 1 | . . . 1 Drone Launches . | . . . . Drone Recoveries . | . . . . Exploration | -11 -10 -9 -9 ------------- Run | Jun Mat Mat Min Turns Passed 2111 | 11 880 766 454 Spaces Moved 1304 | 7 561 419 317 Core . | . . . . Treads 22 | . . 22 . Legs 1282 | 7 561 397 317 Wheels . | . . . . Hover . | . . . . Flight . | . . . . Fastest Speed 120 | 120 120 120 120 Average Speed 132 | 120 120 145 137 Slowest Speed 190 | 120 120 190 190 Overloaded Moves . | . . . . Propulsion Burnouts . | . . . . Robots Hopped . | . . . . Cave-ins Triggered . | . . . . Exploration Rate (%) 48 | 2 83 39 69 Regions Visited 3 Branch Regions 1 Pre-discovered Areas 1 | . . . 1 Known Exits Taken 1 | . . 1 . Unknown Exits Taken 2 | 1 1 . . Scrap Searched . | . . . . Spaces Dug . | . . . . Terrain Destroyed 1 | . . 1 . Melee . | . . . . Projectile . | . . . . AOE 1 | . . 1 . Terrain Rammed 2 | . 2 . . Walls Destroyed . | . . . . Machines Disabled . | . . . . Actions | -11 -10 -9 -9 --------- Run | Jun Mat Mat Min Total 1571 | 9 695 539 328 Wait 69 | . 35 33 1 Move 1301 | 6 560 418 317 Hop . | . . . . Pick Up 10 | 2 1 7 . Fast Attach 20 | 1 9 9 1 Attach 1 | . . . 1 Detach 3 | . 3 . . Swap 12 | . 1 9 2 Drop 21 | . 3 17 1 Fire 117 | . 75 37 5 Melee . | . . . . Ram 2 | . 2 . . Kick . | . . . . Crush . | . . . . Escape Stasis . | . . . . Rewire . | . . . . Trap . | . . . . Miscellaneous 15 | . 6 9 . Route ------- -11/Junkyard -10/Materials (discovered 4 exits: *Mat x3 / Min) -9/Materials (discovered 4 exits: *Mat x3 / *Min) -9/Mines (discovered 2 exits: *Mat / *Zio) History --------- Turn | Location | Event 1 | -11/Junkyard | Upgraded with Propulsion slot (x1) 1 | -11/Junkyard | Upgraded with Utility slot (x3) 1 | -11/Junkyard | Discovered new exit (range 1) 12 | -11/Junkyard | Entered Materials 302 | -10/Materials | Build established: Mutant 343 | -10/Materials | Discovered new exit (range 14) 483 | -10/Materials | Discovered new exit (range 14) 512 | -10/Materials | Identified exit to Mines 704 | -10/Materials | Discovered new exit (range 12) 786 | -10/Materials | Core integrity fell below 50% 892 | -10/Materials | Entered another Materials area 894 | -9/Materials | Reached level 2 894 | -9/Materials | Reached level 3 976 | -9/Materials | Reached level 4 1063 | -9/Materials | Upgraded with Utility slot (x2) 1115 | -9/Materials | Core integrity fell below 50% 1223 | -9/Materials | Reached level 5 1365 | -9/Materials | Discovered new exit (range 10) 1374 | -9/Materials | Identified exit to Materials 1377 | -9/Materials | Build established: Hacker-Mutant 1451 | -9/Materials | Discovered new exit (range 16) 1556 | -9/Materials | Identified exit to Mines 1658 | -9/Materials | Entered Mines 1660 | -9/Mines | Reached level 6 1660 | -9/Mines | Upgraded with Propulsion slot (x1) 1660 | -9/Mines | Upgraded with Weapon slot (x1) 1666 | -9/Mines | Met a Derelict bent on vengeance 1929 | -9/Mines | A Derelict revealed a hidden shortcut to a safe place 1933 | -9/Mines | Identified exit to Zion 1962 | -9/Mines | Learned location of Zion (-7) 1972 | -9/Mines | Found a hidden stash of uninstalled traps 1992 | -9/Mines | Received a Rocket Launcher from a helpful Derelict 2018 | -9/Mines | Discovered exit to Materials (range 8) 2071 | -9/Mines | Assembled infested the area 2104 | -9/Mines | Core integrity fell below 20% 2112 | -9/Mines | Destroyed by D-53 Grenadier with Mini Grenade Launcher Last Messages --------------- 01972_ A stash of uninstalled traps is collected here! 01986_ A derelict emerges from the shadows. 01987_ PK-YZ2(g): "Some of my friends down here think you need a mining laser when you travel the depths." 01988_ PK-YZ2(g): "They are crazy." 01989_ PK-YZ2(g): "Everyone knows a good old rocket launcher goes a long way." 01990_ PK-YZ2(g): "Need to get rid of a swarm? Done. Need a big hole in the wall? Done." 01991_ PK-YZ2(g): "Need a small hole in the wall? Leave that to the mining laser wimps, I say!" 01992_ PK-YZ2(g): "Would you like a rocket launcher? I know I would if I were you, so I'm going to lend you mine." 01992_ PK-YZ2(g) slips back into the shadows. 02018_ EXIT=FOUND: MATERIALS 02036_ T-07 Excavator is excavating. 02071_ ALERT: Infestation in the mines, dispatching Demolisher response squad. 02097_ The unstable cave ceiling collapses. 02103_ T-07 Excavator destroyed. Map ----- +----------------------------------------------------+ | ???????????????????????????????? ##????????? | | ##????????????????????????????????? ##???????? | | ##?????????????????????????????????## ##???????? | | ##?????????????????????????????????## ##???????? | | ##?????????????????????????????????## ##???????? | | ###?????????????????????????????????## #####????? | | ###?????????????????????????????????### ######???? | | ##??????????????????????????????????### ###???? | | ######???????????????????????? ####### ##???? | | ######??????????????????????## ####### ##???? | | ##??????????????????????## ###??? | | ##??????????????????############## ###### | | ### #########???????????#####?######### ##### | | ### #########??????????? ##???????#### ## | | ##???????????## ##????????##### # | | ##???????????## ##?????????##### # | | ##???????????## ##???????????#### ## | | """ ##???????????## ##????????????#### ## | | """ ##???????????## ##?#######????##### ## | | """ ##???????????## ###########???##### ## | | ##??????????### #### # ######## ## | | """ """ ############### # ####### ## ## | | """ """ ############## #### ## ## | | """ """ ### # ### ## ## | | ### d ## ## | | ############## ###### > @ d ##### # | | ##############x####### ###### | | ####????????## ##??###### ### ###### | | #####??????## ##???##### ##### # ## | | ############ ##??????#### ##### ### # | | ########## ##??????###### ## ## # | | ##????????##### ### # % | | ############??????????### ### * # " | | ############???????????## ##?# # # "%" | | ###?????????????????????## ##?# ######## < | | % ####?????????????????###### ##?## ######### | | %#####????????????????######## ##?## ##????### | | ####?????????????????### ### ##### ##?????## | | %####????????????????### ### ##### ##?????## | | % [##???????????????#### #### #### ##????### | | ##%#########????????### #### ### ###???### | | ##!#########????????## #### & & ###??? # | | ##????????## ] & ##?## | | ##???????### ##### ##### ## | | ##??????### ########## ##### ### | | ##??????## ##?############### ### | | """ """ ##??????## ##??????#######?## ###??? | | """ """ ##??????## ##?????????????## ###??? | | """ """ ##??????### ###?????????????####?????? | | ############??????#########?????????????####?????? | +----------------------------------------------------+ Best States ------------- Heat Dissipation 51 Coolant Potential 50 Energy Generation 14 Energy Capacity 275 Matter Stores 328 Matter Capacity 500 Sight Range 18 Robot Scan Range 14 Terrain Scan Range 14 Terrain Scan Density 10 Armor Coverage 225 Resistance: KI 25 Resistance: TH 20 Resistance: EX 20 Resistance: EM 20 Resistance: I 20 Resistance: S 20 Resistance: P 20 Evasion (%) 55 Targeting Accuracy 10 Recoil Reduction 1 Offensive Hacking 25 Defensive Hacking 10 Item Schematics ----------------- None Robot Schematics ------------------ None Fabricated ------------ Nothing Alien Tech Used ----------------- None Achievements -------------- None Challenges ------------ None RPGLIKE | -11 -10 -9 -9 --------- Run | Jun Mat Mat Min Levels Raised 5 | . . 4 1 XP Earned 11891 | 4000 1205 5836 850 XP Spent 11300 | 3650 . 6350 1300 Upgrades 19 | 6 . 11 2 Propulsion Slot 2 | 1 . . 1 Utility Slot 5 | 3 . 2 . Weapon Slot 1 | . . . 1 Heat Dissipation 1 | . . 1 . Inventory Capacity 3 | 2 . 1 . Ranged Accuracy 1 | . . 1 . Hack Attack % 3 | . . 3 . Hack Defense % 2 | . . 2 . KI Resistance % 1 | . . 1 . Protomatter Created 177 | . 73 104 . Integrity Restored 318 | . 144 174 . Core 318 | . 144 174 . Protomatter Decayed 49 | . 25 24 . Game ------ Seed ConcussiveFortressWheel Manual? 0 Play Time 00:28:17 Cumulative 108.3 hours Start 2023.11.02 @ 16:45:29 End 2023.11.02 @ 17:16:06 Sessions 5 Manual Loads 0 Difficulty Adventurer Special Mode Winter2019/RPGLIKE Game No. 45 Rogue 28 Adventurer 17 Explorer 0 Win Type - Total 5 Types 5/0/0/0/0/0/0/0/0 Lore% 53 Gallery% 64 Achievement% 52 Wizard Run 0 Options --------- ASCII 0 Keyboard 1 Movement Vi Keybinds 0 Fullscreen 1 Font 18/SmallcapsGlow Map View 76x50 Tactical HUD 1 Map Filters NONE Filters NONE Steam 1 RUN: c270a171-7eab-45b2-958b-2227c2d2e7f1